bitfinex/quotes_ETHUSD_20241124
["timestamp","ask_amount","ask_price","bid_price","bid_amount"]
[1732491707345,2.98107,3354.5,3353.1,2.64693862]
[1732491708342,2.98091,3354.7,3353.1,2.64693862]
[1732491708492,2.98128,3354.3,3353.2,3.0]
[1732491708693,0.55,3354.4,3353.2,3.0]
[1732491709141,2.98117,3354.4,3353.2,3.0]
[1732491709307,0.55,3354.3,3353.2,3.0]
[1732491710115,2.98152,3354.0,3352.7,3.0]
[1732491710402,2.98178,3353.7,3352.7,2.43274019]
[1732491710603,3.280058,3353.6,3352.7,2.43274019]
[1732491710812,2.98188,3353.6,3352.7,2.43274019]
[1732491711011,2.98188,3353.6,3352.3,2.43274019]
[1732491711421,2.98169,3353.8,3352.7,2.43274019]
[1732491711591,3.360679,3353.8,3352.7,2.43274019]
[1732491711810,0.378989,3353.8,3352.7,2.43274019]
[1732491712644,3.360689,3353.8,3352.7,2.43274019]
[1732491712951,3.360689,3353.8,3352.8,3.0]
[1732491713235,0.378989,3353.8,3352.7,2.43274019]
[1732491713558,0.777,3354.4,3353.1,2.43274019]
[1732491713701,2.98108,3354.5,3353.1,2.43274019]
[1732491713897,0.596197,3354.4,3353.1,2.97899613]
[1732491714325,2.98115,3354.4,3353.1,2.97899613]
[1732491715799,2.98107,3354.5,3353.1,2.97899613]
[1732491716231,3.53095,3354.7,3353.2,3.0]
[1732491716399,3.53095,3354.7,3353.3,0.62771699]
[1732491716840,0.55,3354.7,3353.5,2.43274019]
[1732491717346,0.55,3354.9,3353.5,2.43274019]
[1732491717501,2.98116,3354.4,3353.5,2.43274019]
[1732491717696,0.596214,3354.3,3353.5,2.43274019]
[1732491717946,2.98116,3354.4,3353.5,2.43274019]
[1732491718446,0.55,3355.0,3353.1,2.43274019]
[1732491718599,2.98109,3354.5,3353.1,2.43274019]
[1732491719044,2.98081,3354.8,3353.5,2.43274019]
[1732491719196,0.55,3354.7,3353.5,2.43274019]
[1732491719702,0.55,3354.8,3353.5,2.43274019]
[1732491719925,3.5308,3354.8,3353.5,2.67601421]
[1732491720432,3.53068,3355.0,3353.5,2.67601421]
[1732491720637,0.55,3355.0,3353.9,2.43274019]
[1732491720836,0.48857781,3354.9,3353.9,2.43274019]
[1732491721175,3.75318,3355.4,3353.9,2.43274019]
[1732491721380,2.98045,3355.2,3353.9,2.43274019]
[1732491721826,2.98019,3355.5,3353.9,2.43274019]
[1732491722023,0.7696,3355.8,3354.0,3.0]
[1732491722223,0.7696,3355.8,3353.5,0.24327402]
[1732491722224,2.98105,3354.6,3353.5,0.24327402]
[1732491722423,2.98071,3354.9,3353.2,2.43274019]
[1732491722661,0.375031,3354.8,3353.2,2.43274019]
[1732491722965,2.98127,3354.3,3352.9,0.297]
[1732491723166,0.55,3354.7,3352.9,0.297]
[1732491723337,2.98148,3354.1,3352.8,2.43274019]
[1732491723671,2.98187,3353.6,3352.4,2.43274019]
[1732491723963,3.75128,3353.9,3352.4,2.43274019]
[1732491723964,2.98171,3353.8,3352.4,2.43274019]
[1732491724122,0.55,3353.7,3352.5,0.24327402]
[1732491724523,0.375128,3353.9,3352.8,2.43274019]
[1732491724725,3.53143,3354.1,3352.9,0.297]
[1732491724989,0.55,3354.1,3352.9,0.297]
[1732491725280,3.74345,3354.3,3352.8,2.43274019]
[1732491725281,2.98151,3354.0,3353.0,0.27297402]
[1732491725763,2.98162,3353.9,3353.0,0.27297402]
[1732491726079,0.651313,3353.9,3352.8,2.43274019]
[1732491726364,2.98197,3353.5,3352.5,0.297]
[1732491726550,2.98171,3353.8,3352.4,2.43274019]
[1732491726754,2.98171,3353.8,3351.8,0.297]
[1732491726755,0.55,3353.7,3352.8,2.43274019]
[1732491727062,0.55,3354.1,3352.8,2.43274019]
[1732491727269,2.9816,3353.9,3352.9,0.24327402]
[1732491728089,0.27813784,3353.8,3352.9,0.24327402]
[1732491728381,2.9816,3353.9,3352.9,0.24327402]
[1732491728595,0.27824107,3353.8,3352.9,0.24327402]
[1732491728782,2.9816,3353.9,3353.0,0.26760142]
[1732491729095,0.7994,3353.6,3352.2,0.297]
[1732491729382,2.98223,3353.2,3352.3,0.86997402]
[1732491729563,2.9821,3353.4,3352.3,0.86997402]
[1732491729772,2.9821,3353.4,3352.4,0.3869974]
[1732491729942,0.55,3353.5,3352.4,2.81973759]
[1732491730142,2.98179,3353.7,3352.5,0.36897116]
[1732491730443,0.27821101,3353.6,3352.8,2.43274019]
[1732491730644,0.44504849,3354.1,3352.8,2.43274019]
[1732491730877,3.25973579,3354.0,3352.8,2.43274019]
[1732491731052,0.27814579,3353.9,3352.9,0.5781434]
[1732491731255,2.98159,3354.0,3352.9,0.5781434]
[1732491731575,0.27812394,3353.9,3352.9,0.5781434]
[1732491731781,2.98143,3354.1,3352.9,0.5781434]
[1732491731979,0.27812741,3354.0,3353.0,0.30108836]
[1732491732166,0.27812741,3353.9,3353.0,0.30108836]
[1732491732379,2.98176,3353.8,3352.9,0.5781434]
[1732491732586,2.9818,3353.7,3352.8,2.43274019]
[1732491732752,2.9816,3353.9,3352.8,2.43274019]
[1732491732953,2.98142,3354.1,3352.8,2.43274019]
[1732491733155,0.27813677,3354.0,3352.8,2.43274019]
[1732491733353,2.98125,3354.3,3352.8,2.43274019]
[1732491733354,2.98148,3354.1,3352.9,0.24327402]
[1732491733605,0.27813609,3354.0,3352.9,0.24327402]
[1732491733756,2.98148,3354.1,3352.9,0.24327402]
[1732491733957,0.27814063,3354.0,3352.9,0.24327402]
[1732491734193,0.27813807,3353.9,3353.0,0.26760142]
[1732491734390,0.44502275,3354.2,3353.0,0.26760142]
[1732491734600,0.27813929,3354.1,3353.0,0.26760142]
[1732491734904,0.44502275,3354.3,3353.0,0.26760142]
[1732491735116,0.27812397,3354.2,3353.0,0.26760142]
[1732491735285,3.25954397,3354.1,3353.0,0.26760142]
[1732491735485,0.27813542,3354.0,3353.0,0.26760142]
[1732491735695,0.378618,3354.4,3353.0,0.26760142]
[1732491735898,2.98133,3354.2,3353.0,0.26760142]
[1732491736098,0.44501388,3354.4,3353.0,0.26760142]
[1732491736099,0.27813367,3354.1,3353.0,0.26760142]
[1732491736311,0.27813367,3354.0,3353.0,0.26760142]
[1732491736479,2.98142,3354.2,3353.1,0.57003416]
[1732491736673,0.27813148,3354.1,3353.1,0.57003416]
[1732491736871,3.44434686,3354.9,3353.6,2.43274019]
[1732491737103,0.72309138,3354.8,3354.0,2.43274019]
[1732491737295,0.44497931,3355.1,3354.1,0.24327402]
[1732491737608,0.44497931,3355.4,3354.1,0.24327402]
[1732491737795,2.98045,3355.2,3354.1,0.24327402]
[1732491738002,0.27798643,3355.1,3354.1,0.24327402]
[1732491738308,0.42270893,3355.3,3354.1,0.24327402]
[1732491738681,0.42270893,3355.3,3354.2,0.02981018]
[1732491738832,0.8019,3355.8,3354.2,0.02981018]
[1732491738833,2.97984,3355.9,3354.4,2.43274019]
[1732491739129,0.70237215,3355.8,3354.4,2.43274019]
[1732491739339,2.98033,3355.4,3354.4,2.43274019]
[1732491739831,3.78155,3356.1,3354.4,2.43274019]
[1732491739832,2.97999,3355.8,3354.4,2.43274019]
[1732491740033,2.98009,3355.6,3354.4,2.43274019]
[1732491740709,0.58846806,3355.6,3354.5,0.20517732]
[1732491740900,0.58846806,3355.6,3354.6,0.20517732]
[1732491741099,0.55,3355.4,3354.7,0.20517732]
[1732491741437,0.55,3355.5,3354.8,0.20517732]
[1732491741729,0.55,3355.5,3354.9,0.20517732]
[1732491741924,0.55,3355.3,3355.0,0.20517732]
[1732491742128,0.55,3355.3,3355.1,0.20517732]
[1732491742300,0.55,3355.5,3355.2,0.20517732]
[1732491742641,0.55,3355.5,3355.3,0.2050274]
[1732491742791,0.55,3355.5,3354.4,2.43274019]
[1732491742995,0.55,3355.5,3354.8,2.43274019]
[1732491743223,0.55,3355.5,3354.9,0.44829913]
[1732491743396,0.55,3355.5,3355.0,0.20502511]
[1732491743598,0.55,3355.5,3355.1,0.20502511]
[1732491743835,0.55,3355.5,3355.2,0.20502511]
[1732491744132,0.55,3355.5,3355.3,0.20502511]
[1732491744436,0.55,3355.5,3355.4,0.20502511]
[1732491744896,0.55,3355.7,3354.9,0.20502511]
[1732491745089,0.902992,3355.7,3355.0,0.20502511]
[1732491745317,0.55,3355.7,3355.1,0.20502511]
[1732491745523,0.55,3356.0,3355.2,0.20502511]
[1732491745709,0.55,3355.5,3354.4,2.43274019]
[1732491745924,0.55,3355.5,3354.5,3.20481375]
[1732491746148,0.55,3355.5,3354.6,0.20481375]
[1732491746324,0.55,3355.5,3354.7,0.20481375]
[1732491746530,0.55,3355.5,3354.8,0.20481375]
[1732491746720,0.55,3355.5,3354.9,0.20481375]
[1732491746900,0.8019,3356.1,3355.0,0.20481375]
[1732491746901,0.55,3356.0,3355.0,0.20481375]
[1732491747135,4.02337827,3356.5,3355.0,0.20481375]
[1732491747136,2.97935,3356.5,3355.2,2.43274019]
[1732491747295,3.38171783,3356.4,3355.3,0.20481375]
[1732491747499,3.38171783,3356.4,3355.4,0.20453927]
[1732491747797,0.33817178,3356.3,3355.5,0.20453927]
[1732491748040,0.33817178,3356.3,3355.6,0.20453927]
[1732491748237,2.97972,3356.1,3355.7,0.20453927]
[1732491748423,0.766,3356.8,3354.8,2.43274019]
[1732491748424,0.55,3356.0,3354.8,2.43274019]
[1732491748741,3.53019,3355.5,3354.9,0.20448747]
[1732491748943,3.53019,3355.5,3355.0,0.20448747]
[1732491749237,3.53019,3355.5,3355.1,0.20448747]
[1732491749399,4.181203,3355.5,3355.2,0.20448747]
[1732491749594,0.55,3355.3,3354.5,3.0]
[1732491749801,0.55,3355.2,3354.6,0.20451234]
[1732491750344,0.55,3355.3,3354.6,0.20451234]
[1732491750691,3.53044,3355.3,3354.6,0.20451234]
[1732491750946,2.012171,3355.3,3354.6,0.20451234]
[1732491751090,2.012171,3355.3,3354.0,2.43274019]
[1732491751091,0.55,3354.9,3354.1,0.20451234]
[1732491751298,0.55,3354.5,3354.2,0.20458421]
[1732491751495,4.34218,3354.5,3354.2,0.20458421]
[1732491751743,2.98124,3354.3,3353.7,0.20458421]
[1732491751945,0.55,3354.2,3353.8,0.20470711]
[1732491752236,3.79218,3354.5,3352.5,0.32681451]
[1732491752237,3.53154,3354.0,3353.9,0.20470711]
[1732491752737,0.55,3354.0,3352.8,2.43274019]
[1732491752894,0.55,3354.0,3352.9,0.44805061]
[1732491753092,0.55,3354.1,3353.0,0.20477659]
[1732491753328,0.55,3354.1,3353.1,0.20477659]
[1732491753536,0.55,3354.1,3353.2,0.20477659]
[1732491753738,0.55,3354.1,3353.3,0.20477659]
[1732491753908,0.55,3354.1,3353.4,0.20477659]
[1732491754105,0.55,3354.1,3353.5,0.20477659]
[1732491754422,0.55,3354.1,3353.6,0.20477659]
[1732491754591,0.55,3354.0,3353.2,0.20477659]
[1732491754790,0.55,3354.0,3353.3,0.20478894]
[1732491755040,0.8111,3354.5,3353.3,0.20478894]
[1732491755041,0.55,3354.3,3353.3,0.20478894]
[1732491755331,0.55,3354.3,3353.4,0.20477049]
[1732491755532,0.984228,3354.3,3353.3,0.20477049]
[1732491755696,0.55,3354.0,3353.4,0.20477049]
[1732491755897,0.55,3354.0,3353.2,0.40453942]
[1732491755898,0.55,3354.0,3353.5,0.20477049]
[1732491756208,0.55,3354.0,3353.2,0.40453942]
[1732491756209,0.55,3354.0,3353.6,0.20477049]
[1732491756406,0.55,3354.0,3353.2,0.40453942]
[1732491756610,0.55,3354.0,3353.3,0.20477327]
[1732491756807,0.55,3354.0,3353.4,0.20477327]
[1732491757013,3.53154,3354.0,3352.8,2.43274019]
[1732491757212,0.55,3353.6,3352.9,3.20481392]
[1732491757431,0.55,3353.6,3353.0,0.20481392]
[1732491757619,3.53175,3353.8,3353.0,0.20481392]
[1732491757819,2.98188,3353.6,3353.0,0.20481392]
[1732491758129,3.53175,3353.8,3353.0,0.20481392]
[1732491758518,2.98181,3353.7,3353.1,0.20473487]
[1732491758857,2.98181,3353.7,3352.8,2.43274019]
[1732491758858,0.55,3353.6,3352.8,2.43274019]
[1732491759161,3.53205,3353.4,3352.9,0.20475147]
[1732491759310,3.53205,3353.4,3352.5,0.20475147]
[1732491759512,3.53205,3353.4,3352.6,0.20475147]
[1732491759745,3.53205,3353.4,3352.7,0.20475147]
[1732491759954,0.55,3353.2,3352.8,0.20475147]
[1732491760113,0.55,3353.2,3352.9,0.20475147]
[1732491760315,0.55,3353.5,3353.0,0.20475147]
[1732491760667,3.53178,3353.7,3352.6,0.56760142]
[1732491760817,0.55,3353.5,3352.7,0.79860705]
[1732491761022,2.98246,3353.0,3352.8,0.20480057]
[1732491761333,0.55,3352.9,3352.0,2.43274019]
[1732491761657,3.5324,3353.0,3352.1,0.44806957]
[1732491761857,0.55,3352.8,3352.2,0.20479555]
[1732491762070,0.55,3352.8,3352.3,0.20479385]
[1732491762355,3.53219,3353.3,3352.4,2.63753404]
[1732491762565,2.9817,3353.8,3352.8,2.43274019]
[1732491762726,2.9817,3353.8,3352.9,0.44806787]
[1732491762927,2.98152,3354.0,3353.0,0.20479385]
[1732491763131,0.8053,3354.3,3353.2,2.43274019]
[1732491763359,0.8053,3354.3,3353.3,0.47152962]
[1732491763521,0.8053,3354.3,3353.4,0.20479385]
[1732491763722,2.98158,3354.0,3353.5,0.20479385]
[1732491763917,2.98158,3354.0,3352.8,2.43274019]
[1732491764333,0.55,3353.8,3352.8,2.43274019]
[1732491764533,0.55,3353.6,3352.9,3.0]
[1732491764728,0.55,3353.6,3352.8,2.67601421]
[1732491764944,0.55,3353.6,3352.8,0.24327402]
[1732491765253,0.55,3353.6,3352.4,2.43274019]
[1732491765660,0.55,3353.6,3352.8,2.43274019]
[1732491766579,0.55,3353.7,3352.8,2.43274019]
[1732491766781,0.90317,3353.7,3352.8,2.43274019]
[1732491767286,3.88501,3353.7,3352.8,2.43274019]
[1732491767570,0.55,3353.9,3352.8,2.43274019]
[1732491767771,3.53163,3353.9,3352.8,2.43274019]
[1732491767973,0.55,3353.7,3352.8,2.43274019]
[1732491768344,0.55,3353.8,3352.8,2.43274019]
[1732491768533,2.98151,3354.0,3352.8,2.43274019]
[1732491768740,0.676814,3354.0,3352.9,3.0]
[1732491769368,3.78661,3354.3,3352.9,3.0]
[1732491769564,0.8053,3354.3,3352.9,3.0]
[1732491769761,0.55,3354.1,3352.9,3.0]
[1732491771053,0.55,3354.1,3352.9,3.02981986]
[1732491771251,2.98098,3354.6,3353.6,2.43274019]
[1732491771940,2.98114,3354.5,3353.6,2.43274019]
[1732491772584,2.98109,3354.5,3353.2,2.43274019]
[1732491772753,0.677592,3354.4,3353.2,2.78979853]
[1732491772954,0.55,3354.6,3353.6,2.43274019]
[1732491773151,0.55,3354.7,3353.6,2.43274019]
[1732491773492,3.73083,3355.0,3353.7,0.24327402]
[1732491773855,2.98074,3354.9,3353.7,0.24327402]
[1732491774057,0.671157,3354.8,3353.7,0.24327402]
[1732491774294,2.98107,3354.5,3353.2,0.35705834]
[1732491774502,2.98107,3354.5,3353.2,3.0]
[1732491774657,0.55,3354.4,3353.1,2.43274019]
[1732491774858,0.55,3354.5,3352.7,2.43274019]
[1732491775060,2.98131,3354.3,3352.7,2.43274019]
[1732491775290,0.55,3354.2,3353.1,2.43274019]
[1732491775489,3.53107,3354.5,3352.7,2.43274019]
[1732491775693,0.55,3354.1,3352.7,2.43274019]
[1732491775993,2.98152,3354.0,3352.7,2.43274019]
[1732491776265,1.3823,3354.3,3352.3,0.39950291]
[1732491776410,0.55,3353.7,3352.5,2.43274019]
[1732491776710,0.55,3353.5,3352.5,2.67601421]
[1732491776912,0.55,3353.5,3352.6,3.0]
[1732491777208,0.55,3353.7,3352.6,3.0]
[1732491777407,3.5318,3353.7,3352.7,0.56760142]
[1732491777619,0.55,3353.5,3352.7,0.56760142]
[1732491777907,0.55,3354.0,3352.9,2.43274019]
[1732491778114,0.55,3354.2,3353.3,2.43274019]
[1732491778613,2.98153,3354.0,3353.3,2.43274019]
[1732491778815,0.55,3353.9,3353.3,2.43274019]
[1732491779504,0.55,3354.2,3353.3,2.43274019]
[1732491779699,0.903128,3354.2,3353.3,2.43274019]
[1732491779901,3.884528,3354.2,3353.3,2.43274019]
[1732491780422,0.55,3353.8,3352.9,2.43274019]
[1732491780574,3.53177,3353.8,3353.0,3.24327402]
[1732491781826,0.55,3353.9,3353.0,3.24327402]
[1732491782112,2.98108,3354.5,3353.3,2.43274019]
[1732491782301,3.44392649,3355.1,3353.3,2.43274019]
[1732491782302,0.27810188,3354.4,3353.4,0.02981623]
[1732491782498,0.44495853,3354.8,3353.4,3.30301633]
[1732491782695,0.2780992,3354.7,3353.5,0.57357565]
[1732491783021,0.2780992,3354.6,3353.7,2.43274019]
[1732491783319,3.44364649,3355.4,3353.4,0.30301633]
[1732491783320,2.98029,3355.4,3354.1,2.43274019]
[1732491783524,0.72293668,3355.3,3354.5,2.43274019]
[1732491783755,3.81167,3355.9,3354.5,2.43274019]
[1732491783756,0.4446304,3355.7,3354.5,2.43274019]
[1732491783874,2.98032,3355.4,3354.1,2.43274019]
[1732491784077,0.32582039,3355.3,3354.1,2.43274019]
[1732491784323,2.98061,3355.1,3354.1,2.43274019]
[1732491784617,2.98052,3355.2,3354.1,2.43274019]
[1732491784788,2.98054,3355.1,3354.1,2.43274019]
[1732491784991,2.98063,3355.0,3354.1,2.43274019]
[1732491785297,0.55,3354.8,3354.1,2.43274019]
[1732491785710,3.53072,3354.9,3354.1,2.43274019]
[1732491786099,2.98081,3354.8,3354.1,2.43274019]
[1732491786305,0.55,3354.7,3354.1,2.43274019]
[1732491786695,3.53089,3354.7,3353.7,2.43274019]
[1732491786993,0.55,3354.4,3353.4,3.0]
[1732491787321,0.55,3354.9,3353.7,2.43274019]
[1732491787684,0.55,3354.5,3353.7,2.43274019]
[1732491787881,0.55,3354.5,3353.8,3.0]
[1732491788227,0.55,3354.5,3353.7,2.43274019]
[1732491788522,0.55,3354.7,3353.7,2.43274019]
[1732491788678,3.53095,3354.7,3353.7,2.43274019]
[1732491788882,0.55,3354.4,3353.7,2.43274019]
[1732491789726,0.55,3354.1,3353.3,2.82077161]
[1732491790727,0.55,3353.9,3352.9,2.43274019]
[1732491791388,0.55,3353.9,3352.5,2.43274019]
[1732491791728,0.55,3353.7,3352.6,0.5738093]
[1732491792028,0.55,3353.5,3352.5,2.43274019]
[1732491792721,0.55,3353.7,3352.5,2.43274019]
[1732491793004,0.55,3353.7,3352.6,0.2441093]
[1732491793209,0.55,3353.9,3352.9,2.43274019]
[1732491793386,3.53166,3353.9,3352.9,2.43274019]
[1732491794208,0.55,3353.7,3352.9,2.43274019]
[1732491794421,3.53178,3353.7,3352.5,2.43274019]
[1732491794721,3.53178,3353.7,3352.6,3.2441093]
[1732491794918,0.55,3353.9,3352.6,3.2441093]
[1732491795152,0.55,3353.9,3352.7,0.02982144]
[1732491795376,0.55,3353.8,3352.9,2.43274019]
[1732491795522,3.53176,3353.8,3352.9,2.43274019]
[1732491795713,3.53176,3353.8,3352.6,3.2441093]
[1732491795916,3.53176,3353.8,3352.7,0.32524621]
[1732491796360,0.55,3353.6,3352.7,0.32524621]
[1732491796520,3.53193,3353.6,3352.5,2.43274019]
[1732491796713,0.55,3353.6,3352.5,2.43274019]
[1732491797159,3.76636,3354.3,3352.9,2.43274019]
[1732491797340,3.8092281,3354.2,3352.9,2.43274019]
[1732491797658,3.53134,3354.2,3352.9,2.43274019]
[1732491798213,0.55,3354.0,3352.9,2.43274019]
[1732491798444,0.55,3354.0,3353.0,2.13249795]
[1732491798714,0.55,3354.0,3353.0,1.88922393]
[1732491800426,0.55,3354.2,3353.0,1.88922393]
[1732491800942,2.98083,3354.8,3353.8,1.88922393]
[1732491801261,2.98079,3354.9,3354.2,1.88922393]
[1732491801555,2.98079,3354.9,3354.2,2.07814632]
[1732491801754,2.98064,3355.0,3354.2,1.88922393]
[1732491802128,2.98082,3354.8,3354.2,1.88922393]
[1732491802347,2.98106,3354.6,3353.8,1.88922393]
[1732491802660,0.55,3354.7,3353.8,1.88922393]
[1732491803120,0.55,3354.7,3353.6,0.3]
[1732491803121,0.55,3354.5,3353.6,0.3]
[1732491803320,0.55,3354.3,3353.4,1.88922393]
[1732491803551,0.55,3354.3,3353.8,1.88922393]
[1732491803976,3.76712,3354.9,3353.8,1.88922393]
[1732491804136,2.98047,3355.2,3354.2,1.88922393]
[1732491804137,0.7864,3355.2,3354.2,1.88922393]
[1732491804458,2.98077,3354.9,3354.2,1.88922393]
[1732491804661,5.96112,3355.1,3354.2,1.88922393]
[1732491804964,2.98063,3355.0,3354.2,1.88922393]
[1732491805260,0.55,3354.9,3354.2,1.88922393]
[1732491805759,0.55,3354.8,3354.2,1.88922393]
[1732491806060,0.55,3355.0,3354.2,1.88922393]
[1732491806291,0.55,3355.1,3354.2,1.88922393]
[1732491806563,2.98088,3354.8,3354.2,1.88922393]
[1732491806724,3.53091,3354.7,3353.8,1.88922393]
[1732491807061,3.53077,3354.9,3353.9,0.18892239]
[1732491807579,0.55,3354.9,3353.9,0.18892239]
[1732491807896,0.55,3355.0,3354.2,1.88922393]
[1732491808374,0.55,3355.0,3353.2,3.50801087]
[1732491808375,0.55,3354.7,3353.8,1.88922393]
[1732491809072,3.53094,3354.7,3353.8,1.88922393]
[1732491809237,2.98133,3354.3,3353.4,1.88922393]
[1732491809681,0.55,3354.2,3353.4,1.88922393]
[1732491809979,0.55,3354.1,3353.4,1.88922393]
[1732491810479,3.5315,3354.1,3353.4,1.88922393]
[1732491810689,2.98169,3353.8,3353.0,1.88922393]
[1732491810984,0.55,3353.7,3353.0,1.88922393]
[1732491811485,3.53124,3354.3,3353.4,1.88922393]
[1732491811690,3.53142,3354.1,3353.4,1.88922393]
[1732491811979,0.7682,3353.8,3353.0,1.88922393]
[1732491812154,0.55,3353.7,3353.0,1.88922393]
[1732491812689,0.55,3353.7,3352.4,0.03817246]
[1732491812690,0.55,3353.7,3352.6,1.88922393]
[1732491812837,0.55,3353.4,3352.6,1.88922393]
[1732491813039,0.55,3353.4,3352.7,0.18975768]
[1732491813774,1.3182,3353.2,3352.4,0.00835284]
[1732491814341,4.30044,3353.2,3352.4,0.00835284]
[1732491814779,1.30984716,3353.2,3351.9,2.4337857]
[1732491814952,1.30984716,3353.2,3352.0,0.27738217]
[1732491815153,1.30984716,3353.2,3352.0,3.27738217]
[1732491815676,2.98155,3354.0,3352.7,2.4337857]
[1732491815886,2.9817,3353.8,3352.7,2.4337857]
[1732491816260,2.98193,3353.6,3352.3,2.4337857]
[1732491816445,2.98193,3353.6,3352.4,3.60389061]
[1732491817280,2.98129,3354.3,3352.4,3.60389061]
[1732491817281,0.55,3353.5,3352.4,3.60389061]
[1732491817599,0.55,3353.4,3352.5,0.60376763]
[1732491818476,0.8127,3353.8,3352.7,2.4337857]
[1732491818682,0.8127,3353.8,3352.8,0.02982156]
[1732491818875,0.8127,3353.8,3352.8,0.02982139]
[1732491819087,2.98158,3354.0,3352.8,0.02982139]
[1732491819281,2.98158,3354.0,3352.9,0.24636071]
[1732491820585,0.55,3354.0,3352.9,0.24636071]
[1732491820956,3.53152,3354.0,3352.9,0.24636071]
[1732491821153,2.98167,3353.9,3352.9,0.24636071]
[1732491821378,0.55,3353.8,3352.9,0.24636071]
[1732491821584,0.55,3353.8,3353.0,0.56801464]
[1732491821752,0.55,3354.0,3353.0,0.56801464]
[1732491821951,0.8127,3354.1,3353.1,2.4337857]
[1732491822192,0.7937,3354.4,3353.2,0.02982055]
[1732491822695,0.7937,3354.4,3353.1,5.81820536]
[1732491822861,0.7937,3354.4,3353.2,3.61163836]
[1732491823270,0.55,3354.3,3353.2,3.61163836]
[1732491824778,3.53125,3354.3,3353.2,3.58182054]
[1732491826193,3.53125,3354.3,3353.2,0.58182054]
[1732491826501,3.53125,3354.3,3352.7,3.0]
[1732491826502,2.98151,3354.1,3353.0,3.0]
[1732491826655,2.98135,3354.2,3353.0,3.0]
[1732491826856,1.0257545,3354.1,3353.0,2.73676754]
[1732491827057,0.55,3354.1,3353.1,3.0]
[1732491827357,0.55,3353.9,3353.0,0.30298184]
[1732491827759,0.55,3354.3,3353.0,0.30298184]
[1732491827961,0.55,3354.1,3352.6,2.4337857]
[1732491828201,3.53171,3353.8,3352.6,2.4337857]
[1732491828502,0.55,3353.6,3352.6,2.4337857]
[1732491828997,2.98206,3353.4,3352.4,3.0]
[1732491829199,0.55,3353.3,3352.5,0.3766034]
[1732491829494,0.7559,3353.0,3352.3,0.31021257]
[1732491829692,0.55,3352.9,3351.8,2.4337857]
[1732491829899,0.55,3352.9,3351.9,0.30436499]
[1732491830899,3.53258,3352.9,3351.9,0.30436499]
[1732491831205,2.98272,3352.7,3351.6,0.31026589]
[1732491831359,3.53278,3352.6,3351.2,2.4337857]
[1732491831566,3.53278,3352.6,3351.3,0.27321006]
[1732491831761,3.53263,3352.8,3351.3,0.58351019]
[1732491832157,2.98268,3352.7,3351.3,3.58351019]
[1732491832361,0.55,3352.6,3351.4,0.60172959]
[1732491832805,0.55,3352.9,3351.4,0.60172959]
[1732491833011,2.98265,3352.8,3351.4,0.60172959]
[1732491833183,0.55,3352.5,3351.4,0.60172959]
[1732491833389,0.55,3352.5,3351.5,0.66190255]
[1732491833801,0.55,3352.7,3351.5,0.66190255]
[1732491835073,0.55,3352.6,3351.5,0.66190255]
[1732491835418,0.55,3352.6,3351.3,3.5536787]
[1732491835419,2.98358,3351.7,3351.3,0.31030013]
[1732491835642,0.7559,3352.2,3351.3,0.31030013]
[1732491835643,2.98374,3351.5,3351.3,0.31030013]
[1732491835776,2.98374,3351.5,3341.7,26.25805]
[1732491835777,0.55,3351.0,3349.8,2.4337857]
[1732491835979,3.53425,3351.0,3350.1,0.31040727]
[1732491836177,2.98427,3350.9,3350.1,0.58482657]
[1732491836425,0.55,3350.8,3350.1,0.31040727]
[1732491836579,0.55,3350.8,3349.7,1.89297134]
[1732491836901,3.53438,3350.8,3349.7,1.89297134]
[1732491837527,4.29028,3350.8,3349.7,1.89297134]
[1732491837734,4.29028,3350.8,3349.2,3.02984893]
[1732491837735,0.55,3350.6,3349.5,1.89297134]
[1732491838219,0.55,3350.5,3349.5,1.89297134]
[1732491838415,0.55,3350.5,3349.5,2.43790326]
[1732491838618,0.55,3350.7,3349.5,2.43790326]
[1732491839615,0.55,3350.7,3349.6,3.13012302]
[1732491839817,3.53447,3350.7,3349.6,3.13012302]
[1732491839975,3.53447,3350.7,3349.7,0.55680263]
[1732491840404,0.55,3350.4,3349.7,0.55680263]
[1732491840619,3.53447,3350.7,3349.7,0.55680263]
[1732491840793,0.55,3350.7,3349.7,0.55680263]
[1732491841418,0.7559,3350.8,3349.7,0.55680263]
[1732491841419,0.55,3350.5,3349.7,0.55680263]
[1732491841696,0.55,3350.5,3349.8,0.61248289]
[1732491842219,2.98455,3350.6,3349.8,0.61248289]
[1732491842381,0.55,3350.5,3349.8,0.61248289]
[1732491842581,3.53445,3350.7,3349.6,0.13012302]
[1732491842809,0.55,3350.0,3349.6,0.13012302]
[1732491844193,0.7681,3350.5,3349.6,0.13012302]
[1732491844520,0.7681,3351.0,3349.7,3.02985076]
[1732491844696,0.7681,3351.0,3349.6,3.13012302]
[1732491844894,0.7681,3351.0,3349.7,0.55680263]
[1732491845078,2.98454,3350.6,3349.6,0.13012302]
[1732491845283,2.98464,3350.5,3349.6,0.13012302]
[1732491846025,0.7803,3350.3,3349.6,0.13012302]
[1732491846186,0.55,3350.1,3349.6,0.13012302]
[1732491846883,3.53502,3350.1,3349.6,0.13012302]
[1732491847090,0.55,3350.2,3349.6,0.13012302]
[1732491847290,0.55,3350.5,3349.6,0.13012302]
[1732491847629,3.76467,3350.8,3349.6,3.13012302]
[1732491847836,0.7803,3350.8,3349.6,3.13012302]
[1732491847991,0.7803,3350.8,3349.7,0.55680263]
[1732491848715,0.55,3350.7,3349.8,0.02666756]
[1732491849447,0.7685,3351.2,3349.9,2.43790326]
[1732491849735,2.98382,3351.5,3350.0,3.33198373]
[1732491849918,0.7685,3351.6,3350.3,2.43790326]
[1732491850119,3.75216,3351.6,3350.3,2.43790326]
[1732491850629,3.75216,3351.6,3350.4,0.0275318]
[1732491851132,0.55,3351.5,3350.4,0.0275318]
[1732491851334,0.60575911,3351.6,3350.7,2.43790326]
[1732491851514,0.7803,3351.9,3350.8,0.24379033]